[Event "*** SCC Grand Prix: Titled Tuesday Blitz"]
[Site "Chess.com"]
[Date "2020.06.23"]
[Round "7"]
[White "TheLawAdv"]
[Black "ALEXJR20"]
[Result "1/2-1/2"]
[WhiteElo "2019"]
[BlackElo "2199"]
[TimeControl "180+1"]
[EndTime "11:18:48 PDT"]
[Termination "Game drawn - insufficient material"]

1. e4 {[%clk 0:02:59.7]} 1... Nc6 {[%clk 0:02:59.6]} 2. d4 {[%clk 0:02:57.8]}
2... d5 {[%clk 0:02:59.8]} 3. exd5 {[%clk 0:02:57.5]} 3... Qxd5 {[%clk
0:03:00.7]} 4. c3 {[%clk 0:02:54.8]} 4... Nf6 {[%clk 0:02:59.9]} 5. Nf3 {[%clk
0:02:54.9]} 5... Bg4 {[%clk 0:03:00.2]} 6. Be2 {[%clk 0:02:55.5]} 6... O-O-O
{[%clk 0:03:00]} 7. O-O {[%clk 0:02:55.5]} 7... e6 {[%clk 0:02:55.7]} 8. Be3
{[%clk 0:02:51.8]} 8... Bd6 {[%clk 0:02:55.2]} 9. Nbd2 {[%clk 0:02:51.6]} 9...
Qh5 {[%clk 0:02:54.9]} 10. c4 {[%clk 0:02:33.2]} 10... e5 {[%clk 0:02:48.9]} 11.
c5 {[%clk 0:02:32.7]} 11... Be7 {[%clk 0:02:41.9]} 12. Qa4 {[%clk 0:02:26.2]}
12... exd4 {[%clk 0:02:37.1]} 13. Bf4 {[%clk 0:02:15.2]} 13... Bxc5 {[%clk
0:02:31.6]} 14. Rac1 {[%clk 0:02:14.1]} 14... Bd6 {[%clk 0:02:26.9]} 15. Bg3
{[%clk 0:01:57]} 15... Rhe8 {[%clk 0:02:18.4]} 16. Rxc6 {[%clk 0:01:52.4]} 16...
bxc6 {[%clk 0:02:19.3]} 17. Qxc6 {[%clk 0:01:52.4]} 17... Rxe2 {[%clk
0:02:08.1]} 18. Qa6+ {[%clk 0:01:51.8]} 18... Kd7 {[%clk 0:02:05.8]} 19. Qxe2
{[%clk 0:01:51.6]} 19... Re8 {[%clk 0:01:56.1]} 20. Qd3 {[%clk 0:01:44.2]} 20...
Bxf3 {[%clk 0:01:21.5]} 21. Nxf3 {[%clk 0:01:40.5]} 21... Re4 {[%clk 0:01:13.5]}
22. Nxd4 {[%clk 0:01:28.5]} 22... Qd5 {[%clk 0:00:56.2]} 23. Qb5+ {[%clk
0:01:20.7]} 23... Qxb5 {[%clk 0:00:55.5]} 24. Nxb5 {[%clk 0:01:21.6]} 24... Rb4
{[%clk 0:00:52.9]} 25. Nxd6 {[%clk 0:01:20.7]} 25... cxd6 {[%clk 0:00:53.8]} 26.
Rd1 {[%clk 0:01:20.7]} 26... Ne4 {[%clk 0:00:44.3]} 27. Be5 {[%clk 0:01:03.3]}
27... f6 {[%clk 0:00:39.9]} 28. Bd4 {[%clk 0:01:02.9]} 28... a5 {[%clk
0:00:33.5]} 29. f3 {[%clk 0:01:00.4]} 29... Ng5 {[%clk 0:00:32.1]} 30. Bc3
{[%clk 0:00:49.6]} 30... Rb5 {[%clk 0:00:30.6]} 31. a4 {[%clk 0:00:49.1]} 31...
Rc5 {[%clk 0:00:27.6]} 32. Be1 {[%clk 0:00:33.2]} 32... Nf7 {[%clk 0:00:24.6]}
33. b4 {[%clk 0:00:31.7]} 33... axb4 {[%clk 0:00:24.2]} 34. Bxb4 {[%clk
0:00:32.6]} 34... Rc4 {[%clk 0:00:23.2]} 35. Be1 {[%clk 0:00:25.1]} 35... Rxa4
{[%clk 0:00:22.6]} 36. Bg3 {[%clk 0:00:22.9]} 36... Ra2 {[%clk 0:00:21.6]} 37.
h4 {[%clk 0:00:21.3]} 37... g6 {[%clk 0:00:20.7]} 38. Bf2 {[%clk 0:00:20.1]}
38... g5 {[%clk 0:00:19.2]} 39. Bd4 {[%clk 0:00:20]} 39... Ke6 {[%clk 0:00:19]}
40. hxg5 {[%clk 0:00:20.2]} 40... fxg5 {[%clk 0:00:15.9]} 41. Re1+ {[%clk
0:00:19.6]} 41... Kd5 {[%clk 0:00:15.8]} 42. Rd1 {[%clk 0:00:19.7]} 42... Ke6
{[%clk 0:00:14.2]} 43. Be3 {[%clk 0:00:19.7]} 43... Ra3 {[%clk 0:00:13.1]} 44.
Kf2 {[%clk 0:00:18.9]} 44... Ra2+ {[%clk 0:00:12.9]} 45. Kg3 {[%clk 0:00:18.9]}
45... Ra3 {[%clk 0:00:13.8]} 46. Bf2 {[%clk 0:00:19.1]} 46... Kf5 {[%clk
0:00:13.9]} 47. Rd5+ {[%clk 0:00:18.6]} 47... Ke6 {[%clk 0:00:12.6]} 48. Rd4
{[%clk 0:00:18]} 48... Ra2 {[%clk 0:00:12.4]} 49. Re4+ {[%clk 0:00:18.3]} 49...
Ne5 {[%clk 0:00:12.6]} 50. Bd4 {[%clk 0:00:18.4]} 50... Kf5 {[%clk 0:00:12.4]}
51. Kh3 {[%clk 0:00:16.7]} 51... h5 {[%clk 0:00:12.4]} 52. Re1 {[%clk
0:00:14.9]} 52... Ra4 {[%clk 0:00:12.3]} 53. g4+ {[%clk 0:00:14.5]} 53... hxg4+
{[%clk 0:00:11.7]} 54. fxg4+ {[%clk 0:00:15.4]} 54... Ke6 {[%clk 0:00:12]} 55.
Be3 {[%clk 0:00:14.5]} 55... Ra3 {[%clk 0:00:12.3]} 56. Kg2 {[%clk 0:00:13.7]}
56... Nxg4 {[%clk 0:00:12.6]} 57. Bxg5+ {[%clk 0:00:13.5]} 57... Kf5 {[%clk
0:00:12.6]} 58. Be7 {[%clk 0:00:12.8]} 58... Ra2+ {[%clk 0:00:12.3]} 59. Kg3
{[%clk 0:00:12.3]} 59... Rd2 {[%clk 0:00:12.7]} 60. Rf1+ {[%clk 0:00:09]} 60...
Ke6 {[%clk 0:00:13]} 61. Re1+ {[%clk 0:00:08.6]} 61... Kd5 {[%clk 0:00:12]} 62.
Kxg4 {[%clk 0:00:08.5]} 62... Rd4+ {[%clk 0:00:11.9]} 63. Kf5 {[%clk 0:00:07.6]}
63... Ra4 {[%clk 0:00:10.4]} 64. Bf6 {[%clk 0:00:07.8]} 64... Kc5 {[%clk
0:00:10.1]} 65. Be7 {[%clk 0:00:08.1]} 65... Kc6 {[%clk 0:00:09.6]} 66. Rd1
{[%clk 0:00:08.3]} 66... d5 {[%clk 0:00:09.7]} 67. Ke6 {[%clk 0:00:08.7]} 67...
Ra7 {[%clk 0:00:09.9]} 68. Rxd5 {[%clk 0:00:06.8]} 68... Rxe7+ {[%clk 0:00:10]}
69. Kxe7 {[%clk 0:00:07.2]} 69... Kxd5 {[%clk 0:00:10.9]} 1/2-1/2

[Event "*** SCC Grand Prix: Titled Tuesday Blitz"]
[Site "Chess.com"]
[Date "2020.06.23"]
[Round "7"]
[White "Anton_Demchenko"]
[Black "WIDBIFS"]
[Result "1-0"]
[WhiteElo "2849"]
[BlackElo "2711"]
[TimeControl "180+1"]
[EndTime "11:18:53 PDT"]
[Termination "Anton_Demchenko won by resignation"]

1. d4 {[%clk 0:03:00.9]} 1... Nf6 {[%clk 0:03:00.3]} 2. Nf3 {[%clk 0:03:01.4]}
2... g6 {[%clk 0:03:00.7]} 3. Bf4 {[%clk 0:03:01.4]} 3... Bg7 {[%clk 0:03:01.3]}
4. c3 {[%clk 0:03:02.1]} 4... O-O {[%clk 0:03:01.8]} 5. Nbd2 {[%clk 0:03:02.8]}
5... c5 {[%clk 0:03:02.2]} 6. dxc5 {[%clk 0:03:02.3]} 6... Na6 {[%clk
0:02:59.7]} 7. Nb3 {[%clk 0:03:01.9]} 7... Ne4 {[%clk 0:01:57.1]} 8. Qd5 {[%clk
0:03:00.9]} 8... Nexc5 {[%clk 0:01:45.9]} 9. e3 {[%clk 0:02:41.7]} 9... Nxb3
{[%clk 0:01:40.1]} 10. axb3 {[%clk 0:02:39.7]} 10... Nc7 {[%clk 0:01:38.6]} 11.
Qd1 {[%clk 0:02:28.9]} 11... d6 {[%clk 0:01:37.4]} 12. Be2 {[%clk 0:02:26.9]}
12... Ne6 {[%clk 0:01:36.2]} 13. Bg3 {[%clk 0:02:25.6]} 13... b6 {[%clk
0:01:36.4]} 14. O-O {[%clk 0:02:22.9]} 14... Bb7 {[%clk 0:01:36.8]} 15. Nd4
{[%clk 0:02:19.4]} 15... Nc5 {[%clk 0:01:30.6]} 16. f3 {[%clk 0:02:07.7]} 16...
a6 {[%clk 0:01:23.3]} 17. b4 {[%clk 0:02:04.3]} 17... Nd7 {[%clk 0:01:17.2]} 18.
Bf2 {[%clk 0:02:01.8]} 18... e5 {[%clk 0:01:09.4]} 19. Nc2 {[%clk 0:01:40.3]}
19... d5 {[%clk 0:01:09.7]} 20. b5 {[%clk 0:01:34.5]} 20... a5 {[%clk
0:01:06.3]} 21. Qb1 {[%clk 0:01:05.5]} 21... Qc7 {[%clk 0:01:03.9]} 22. Rd1
{[%clk 0:00:58.3]} 22... Rfd8 {[%clk 0:01:00.2]} 23. Qa2 {[%clk 0:00:52.8]}
23... Nc5 {[%clk 0:00:58.7]} 24. Rac1 {[%clk 0:00:49]} 24... h6 {[%clk
0:00:52.6]} 25. Bf1 {[%clk 0:00:49.4]} 25... Qe7 {[%clk 0:00:51.8]} 26. Ne1
{[%clk 0:00:43.1]} 26... Kh7 {[%clk 0:00:49.4]} 27. Nd3 {[%clk 0:00:33.9]} 27...
Nxd3 {[%clk 0:00:41.5]} 28. Bxd3 {[%clk 0:00:34.8]} 28... e4 {[%clk 0:00:41.8]}
29. Be2 {[%clk 0:00:35.4]} 29... f5 {[%clk 0:00:34.2]} 30. f4 {[%clk 0:00:33.3]}
30... Rac8 {[%clk 0:00:32.6]} 31. Rc2 {[%clk 0:00:23.3]} 31... Qc5 {[%clk
0:00:31.2]} 32. Rcd2 {[%clk 0:00:22.4]} 32... Bf6 {[%clk 0:00:28.5]} 33. h3
{[%clk 0:00:22.7]} 33... h5 {[%clk 0:00:27.5]} 34. Kh2 {[%clk 0:00:16.5]} 34...
h4 {[%clk 0:00:27.6]} 35. Qb1 {[%clk 0:00:13.9]} 35... Kg7 {[%clk 0:00:20.3]}
36. Rg1 {[%clk 0:00:13.9]} 36... Kf7 {[%clk 0:00:19.5]} 37. Qe1 {[%clk
0:00:08.8]} 37... Qe7 {[%clk 0:00:19.5]} 38. g4 {[%clk 0:00:08.5]} 38... hxg3+
{[%clk 0:00:19.7]} 39. Rxg3 {[%clk 0:00:08.8]} 39... Rh8 {[%clk 0:00:20.3]} 40.
Qg1 {[%clk 0:00:08.1]} 40... Rh6 {[%clk 0:00:19.1]} 41. Bf1 {[%clk 0:00:08.4]}
41... Rch8 {[%clk 0:00:19.4]} 42. c4 {[%clk 0:00:03.6]} 42... d4 {[%clk
0:00:17.7]} 43. exd4 {[%clk 0:00:02.9]} 43... Ba8 {[%clk 0:00:10.4]} 44. d5
{[%clk 0:00:02.7]} 44... Qb4 {[%clk 0:00:05.8]} 45. Be3 {[%clk 0:00:01.5]} 45...
Bh4 {[%clk 0:00:05.9]} 46. Qf2 {[%clk 0:00:01.1]} 46... Bxg3+ {[%clk 0:00:05.6]}
47. Qxg3 {[%clk 0:00:02]} 47... a4 {[%clk 0:00:04.9]} 48. d6 {[%clk 0:00:02.1]}
48... a3 {[%clk 0:00:03.6]} 49. bxa3 {[%clk 0:00:03]} 49... Qc3 {[%clk 0:00:04]}
50. d7 {[%clk 0:00:03.2]} 50... Bb7 {[%clk 0:00:03.4]} 51. d8=Q {[%clk
0:00:02.9]} 51... Rxd8 {[%clk 0:00:03.8]} 52. Rxd8 {[%clk 0:00:03.8]} 52... Qa1
{[%clk 0:00:04]} 53. Rd2 {[%clk 0:00:04.3]} 53... Qxf1 {[%clk 0:00:03.5]} 54.
Rd7+ {[%clk 0:00:04.3]} 54... Ke6 {[%clk 0:00:03.6]} 55. Rxb7 {[%clk 0:00:04.7]}
55... Qe2+ {[%clk 0:00:02.8]} 56. Bf2 {[%clk 0:00:05.2]} 56... e3 {[%clk
0:00:01.8]} 57. Qxe3+ {[%clk 0:00:04.6]} 57... Qxe3 {[%clk 0:00:02.7]} 58. Bxe3
{[%clk 0:00:05.5]} 58... Rh7 {[%clk 0:00:03.6]} 59. Rxb6+ {[%clk 0:00:06]} 1-0

[Event "*** SCC Grand Prix: Titled Tuesday Blitz"]
[Site "Chess.com"]
[Date "2020.06.23"]
[Round "7"]
[White "Grandelicious"]
[Black "zaur-mammadov"]
[Result "1-0"]
[WhiteElo "2789"]
[BlackElo "2602"]
[TimeControl "180+1"]
[EndTime "11:18:54 PDT"]
[Termination "Grandelicious won by resignation"]

1. e4 {[%clk 0:03:00.9]} 1... e6 {[%clk 0:02:59.5]} 2. d4 {[%clk 0:03:00.8]}
2... d5 {[%clk 0:02:59.9]} 3. e5 {[%clk 0:03:01.5]} 3... c5 {[%clk 0:02:59.3]}
4. c3 {[%clk 0:03:02.2]} 4... Nc6 {[%clk 0:02:59.6]} 5. Nf3 {[%clk 0:03:02.9]}
5... Qb6 {[%clk 0:02:59.5]} 6. Bd3 {[%clk 0:03:03.6]} 6... cxd4 {[%clk
0:02:58.3]} 7. cxd4 {[%clk 0:02:54.1]} 7... Bd7 {[%clk 0:02:58.7]} 8. Bc2 {[%clk
0:02:45.4]} 8... Nb4 {[%clk 0:02:57.5]} 9. Ba4 {[%clk 0:02:26.4]} 9... Bxa4
{[%clk 0:02:46.5]} 10. Qxa4+ {[%clk 0:02:27.3]} 10... Qc6 {[%clk 0:02:46.8]} 11.
Qxc6+ {[%clk 0:02:26.6]} 11... bxc6 {[%clk 0:02:47.7]} 12. Na3 {[%clk
0:02:20.2]} 12... c5 {[%clk 0:02:43.9]} 13. Ke2 {[%clk 0:02:08.7]} 13... Rc8
{[%clk 0:02:06.8]} 14. Be3 {[%clk 0:02:02.1]} 14... Ne7 {[%clk 0:01:54.7]} 15.
Nb5 {[%clk 0:01:47.3]} 15... Nf5 {[%clk 0:01:43.6]} 16. Nxa7 {[%clk 0:01:47.4]}
16... Rb8 {[%clk 0:01:36.7]} 17. a4 {[%clk 0:01:45.6]} 17... Nc2 {[%clk
0:01:28]} 18. Rab1 {[%clk 0:01:41]} 18... cxd4 {[%clk 0:01:17.4]} 19. Bd2 {[%clk
0:01:39.3]} 19... Rb3 {[%clk 0:01:17.2]} 20. Rhc1 {[%clk 0:01:24.3]} 20... d3+
{[%clk 0:01:13.5]} 21. Kd1 {[%clk 0:01:24.6]} 21... Bc5 {[%clk 0:01:11.7]} 22.
Nb5 {[%clk 0:01:24.7]} 22... Bxf2 {[%clk 0:01:09.7]} 23. Rxc2 {[%clk 0:01:23.7]}
23... dxc2+ {[%clk 0:01:03.5]} 24. Kxc2 {[%clk 0:01:24.6]} 24... Rxb5 {[%clk
0:00:57.2]} 25. axb5 {[%clk 0:01:25.5]} 25... Kd7 {[%clk 0:00:57.3]} 26. Kd3
{[%clk 0:01:15.2]} 26... Rb8 {[%clk 0:00:54.1]} 27. Ra1 {[%clk 0:01:14.6]} 27...
Rxb5 {[%clk 0:00:51.3]} 28. b4 {[%clk 0:01:15.1]} 28... Rb7 {[%clk 0:00:45]} 29.
Ra8 {[%clk 0:01:13.7]} 29... Ra7 {[%clk 0:00:36.8]} 30. Rf8 {[%clk 0:01:12.2]}
30... Ke7 {[%clk 0:00:34.3]} 31. Rb8 {[%clk 0:01:12.7]} 31... f6 {[%clk
0:00:17.1]} 32. g4 {[%clk 0:01:11]} 32... Nh4 {[%clk 0:00:15.4]} 33. exf6+
{[%clk 0:01:01.5]} 33... gxf6 {[%clk 0:00:14.8]} 34. Nxh4 {[%clk 0:00:55.6]}
34... Bxh4 {[%clk 0:00:15.7]} 35. Rh8 {[%clk 0:00:55.9]} 35... Kd6 {[%clk
0:00:13.9]} 36. b5 {[%clk 0:00:52.1]} 36... Rb7 {[%clk 0:00:13.6]} 37. Bb4+
{[%clk 0:00:39.5]} 37... Ke5 {[%clk 0:00:13.9]} 38. Bc3+ {[%clk 0:00:37.1]}
38... Kf4 {[%clk 0:00:14.3]} 39. b6 {[%clk 0:00:37.4]} 39... e5 {[%clk 0:00:14]}
40. Ba5 {[%clk 0:00:34.2]} 40... Bf2 {[%clk 0:00:12.8]} 41. Rf8 {[%clk
0:00:31.4]} 41... Kg5 {[%clk 0:00:11.8]} 42. h4+ {[%clk 0:00:31.9]} 42... Kg6
{[%clk 0:00:11.4]} 43. g5 {[%clk 0:00:28.4]} 43... e4+ {[%clk 0:00:08.6]} 44.
Ke2 {[%clk 0:00:26.5]} 44... Bd4 {[%clk 0:00:09.1]} 45. gxf6 {[%clk 0:00:24.5]}
45... Bxf6 {[%clk 0:00:10]} 46. h5+ {[%clk 0:00:25.1]} 46... Kg7 {[%clk
0:00:10]} 47. Ra8 {[%clk 0:00:25]} 47... Bd4 {[%clk 0:00:09.6]} 48. h6+ {[%clk
0:00:19.7]} 48... Kxh6 {[%clk 0:00:09.2]} 49. Rd8 {[%clk 0:00:19.8]} 49... Kg7
{[%clk 0:00:08.6]} 50. Rxd5 {[%clk 0:00:18.4]} 50... Bxb6 {[%clk 0:00:07.5]} 51.
Rb5 {[%clk 0:00:18.6]} 51... Bxa5 {[%clk 0:00:06]} 52. Rxb7+ {[%clk 0:00:19.2]}
52... Kg6 {[%clk 0:00:06.7]} 53. Ke3 {[%clk 0:00:20]} 53... Bd8 {[%clk
0:00:06.6]} 54. Kxe4 {[%clk 0:00:20]} 54... Bf6 {[%clk 0:00:07.2]} 55. Rb6
{[%clk 0:00:20]} 55... h6 {[%clk 0:00:07.7]} 56. Kf4 {[%clk 0:00:20.3]} 56... h5
{[%clk 0:00:06.3]} 57. Ra6 {[%clk 0:00:20.4]} 57... h4 {[%clk 0:00:05.8]} 58.
Kg4 {[%clk 0:00:21.3]} 58... Kg7 {[%clk 0:00:05.3]} 59. Kf5 {[%clk 0:00:21.5]}
59... Bc3 {[%clk 0:00:05.2]} 60. Rg6+ {[%clk 0:00:18.6]} 60... Kf7 {[%clk
0:00:04.4]} 61. Re6 {[%clk 0:00:16.9]} 61... Bb4 {[%clk 0:00:01.8]} 62. Rh6
{[%clk 0:00:15.3]} 62... Be7 {[%clk 0:00:02.7]} 63. Rh7+ {[%clk 0:00:15.7]}
63... Ke8 {[%clk 0:00:03.1]} 64. Ke6 {[%clk 0:00:15.9]} 64... Bf8 {[%clk
0:00:03.2]} 65. Rxh4 {[%clk 0:00:12.9]} 65... Bg7 {[%clk 0:00:02.5]} 66. Ra4
{[%clk 0:00:12.2]} 66... Kd8 {[%clk 0:00:01.5]} 67. Ra8+ {[%clk 0:00:12.2]}
67... Kc7 {[%clk 0:00:02.2]} 68. Ra7+ {[%clk 0:00:13.1]} 1-0

[Event "*** SCC Grand Prix: Titled Tuesday Blitz"]
[Site "Chess.com"]
[Date "2020.06.23"]
[Round "7"]
[White "XDPS"]
[Black "rubhani"]
[Result "1-0"]
[WhiteElo "2679"]
[BlackElo "2528"]
[TimeControl "180+1"]
[EndTime "11:18:55 PDT"]
[Termination "XDPS won by resignation"]

1. e4 {[%clk 0:02:53.4]} 1... c5 {[%clk 0:02:59.5]} 2. Nf3 {[%clk 0:02:51.9]}
2... d6 {[%clk 0:02:59.2]} 3. d4 {[%clk 0:02:48]} 3... cxd4 {[%clk 0:03:00.1]}
4. Nxd4 {[%clk 0:02:48.9]} 4... Nf6 {[%clk 0:03:00.3]} 5. Nc3 {[%clk 0:02:49.1]}
5... a6 {[%clk 0:03:00.6]} 6. Be2 {[%clk 0:02:48.5]} 6... e5 {[%clk 0:03:00.2]}
7. Nf3 {[%clk 0:02:48.1]} 7... Be7 {[%clk 0:03:00.5]} 8. Bg5 {[%clk 0:02:47.3]}
8... O-O {[%clk 0:02:50.6]} 9. Bxf6 {[%clk 0:02:46.7]} 9... Bxf6 {[%clk
0:02:50.5]} 10. O-O {[%clk 0:02:47.1]} 10... Nc6 {[%clk 0:02:24.6]} 11. Nd5
{[%clk 0:02:39]} 11... Be7 {[%clk 0:02:01.4]} 12. h3 {[%clk 0:02:32.5]} 12... f5
{[%clk 0:02:01]} 13. Bc4 {[%clk 0:02:20.3]} 13... Kh8 {[%clk 0:02:00.7]} 14.
exf5 {[%clk 0:02:17.6]} 14... Bxf5 {[%clk 0:01:59.6]} 15. Ne3 {[%clk 0:02:17.4]}
15... Bg6 {[%clk 0:01:50.8]} 16. c3 {[%clk 0:02:12.8]} 16... Rc8 {[%clk
0:01:10.7]} 17. Be6 {[%clk 0:02:03.6]} 17... Rb8 {[%clk 0:01:06.4]} 18. Nd2
{[%clk 0:01:33.8]} 18... Bg5 {[%clk 0:01:00.9]} 19. Ndc4 {[%clk 0:01:21.1]}
19... Rf6 {[%clk 0:01:00.5]} 20. Bd5 {[%clk 0:01:18]} 20... Ne7 {[%clk
0:00:52.8]} 21. Ng4 {[%clk 0:00:39.5]} 21... Rf4 {[%clk 0:00:49.6]} 22. Nce3
{[%clk 0:00:38.1]} 22... Bh5 {[%clk 0:00:36.4]} 23. Bf3 {[%clk 0:00:37.4]} 23...
e4 {[%clk 0:00:33.2]} 24. Be2 {[%clk 0:00:37.4]} 24... d5 {[%clk 0:00:33.3]} 25.
Ne5 {[%clk 0:00:35.4]} 25... Bxe2 {[%clk 0:00:30]} 26. Qxe2 {[%clk 0:00:36.3]}
26... Qd6 {[%clk 0:00:29.7]} 27. N5g4 {[%clk 0:00:31.6]} 27... Rbf8 {[%clk
0:00:29]} 28. Rad1 {[%clk 0:00:31.3]} 28... Qe6 {[%clk 0:00:28.8]} 29. Nh2
{[%clk 0:00:30]} 29... h6 {[%clk 0:00:20.3]} 30. Nc2 {[%clk 0:00:22.4]} 30...
Nf5 {[%clk 0:00:19.7]} 31. Nd4 {[%clk 0:00:21.3]} 31... Nxd4 {[%clk 0:00:18.7]}
32. Rxd4 {[%clk 0:00:22.2]} 32... Bf6 {[%clk 0:00:19]} 33. Rdd1 {[%clk
0:00:22.7]} 33... Rf5 {[%clk 0:00:18.9]} 34. Ng4 {[%clk 0:00:22.9]} 34... h5
{[%clk 0:00:18.3]} 35. Ne3 {[%clk 0:00:22.9]} 35... Rg5 {[%clk 0:00:18.4]} 36.
Kh1 {[%clk 0:00:22.2]} 36... Bd8 {[%clk 0:00:17.8]} 37. f4 {[%clk 0:00:21.5]}
37... exf3 {[%clk 0:00:17.4]} 38. Rxf3 {[%clk 0:00:22]} 38... Re8 {[%clk
0:00:17.7]} 39. Rdf1 {[%clk 0:00:20.9]} 39... Bc7 {[%clk 0:00:17]} 40. Qd3
{[%clk 0:00:21]} 40... Kg8 {[%clk 0:00:15.5]} 41. Qd2 {[%clk 0:00:09.5]} 41...
Qe5 {[%clk 0:00:15.8]} 42. g3 {[%clk 0:00:09.3]} 42... Rxg3 {[%clk 0:00:16]} 43.
Qxd5+ {[%clk 0:00:09.3]} 43... Qxd5 {[%clk 0:00:15.3]} 44. Nxd5 {[%clk
0:00:10.2]} 44... Rxf3 {[%clk 0:00:15.5]} 45. Rxf3 {[%clk 0:00:11.1]} 45... Bd6
{[%clk 0:00:15.9]} 46. Rf2 {[%clk 0:00:10.8]} 46... Re1+ {[%clk 0:00:15.7]} 47.
Kg2 {[%clk 0:00:10.3]} 47... g6 {[%clk 0:00:16.2]} 48. Rd2 {[%clk 0:00:08.9]}
48... Kg7 {[%clk 0:00:15.8]} 49. a3 {[%clk 0:00:07.6]} 49... Kf7 {[%clk
0:00:14.7]} 50. Nb6 {[%clk 0:00:07.6]} 50... Ke6 {[%clk 0:00:14.9]} 51. Nc4
{[%clk 0:00:08]} 51... Bc7 {[%clk 0:00:14.6]} 52. Kf2 {[%clk 0:00:07.9]} 52...
Re4 {[%clk 0:00:13.9]} 53. b3 {[%clk 0:00:08.4]} 53... b5 {[%clk 0:00:13.8]} 54.
Nb2 {[%clk 0:00:08.1]} 54... Bb6+ {[%clk 0:00:14.2]} 55. Kg2 {[%clk 0:00:08.1]}
55... Re3 {[%clk 0:00:14.6]} 56. Nd3 {[%clk 0:00:08.3]} 56... g5 {[%clk
0:00:14.3]} 57. c4 {[%clk 0:00:08.7]} 57... bxc4 {[%clk 0:00:14.1]} 58. bxc4
{[%clk 0:00:08.8]} 58... Bd4 {[%clk 0:00:15]} 59. c5 {[%clk 0:00:08.5]} 59...
Kd5 {[%clk 0:00:15]} 60. Nb4+ {[%clk 0:00:08.6]} 60... Kxc5 {[%clk 0:00:15.2]}
61. Nxa6+ {[%clk 0:00:09]} 61... Kc4 {[%clk 0:00:15.6]} 62. Nb4 {[%clk
0:00:09.1]} 62... g4 {[%clk 0:00:16]} 63. Nc2 {[%clk 0:00:08.7]} 63... Rxh3
{[%clk 0:00:15.3]} 64. Nxd4 {[%clk 0:00:07.9]} 64... Rxa3 {[%clk 0:00:13.9]} 65.
Ne2 {[%clk 0:00:07.8]} 65... h4 {[%clk 0:00:13.8]} 66. Rd4+ {[%clk 0:00:08.1]}
66... Kc5 {[%clk 0:00:14]} 67. Rxg4 {[%clk 0:00:09]} 67... Ra2 {[%clk
0:00:14.4]} 68. Kf3 {[%clk 0:00:09.1]} 68... h3 {[%clk 0:00:14.5]} 69. Rh4
{[%clk 0:00:08.9]} 69... Kd5 {[%clk 0:00:14.8]} 70. Nc3+ {[%clk 0:00:08.3]} 1-0